fUSD/lending_fUSD_20240831
["ID","MTS","AMOUNT","RATE_DAILY","PERIOD"]
[336764918,1725120919881,213.65,0.00010959,2]
[336764919,1725121494014,476.92,0.00010079,2]
[336764920,1725121525598,970.28091282,0.000108,2]
[336765261,1725121681815,60605.6244499,0.00011,2]
[336765262,1725121710048,168.12,0.00010959,2]
[336765278,1725121829398,550.0,0.00011,2]
[336765295,1725121832221,-285.88243557,0.00011304,2]
[336765296,1725121832230,-250.0,0.00011594,2]
[336765297,1725121832240,-299.88647294,0.00011604,2]
[336765301,1725121832283,-151.77352706,0.00011604,2]
[336765302,1725121832293,-160.57,0.00011611,2]
[336765303,1725121832302,-250.0,0.00011697,2]
[336765304,1725121832312,-530.50730128,0.00011868,2]
[336765305,1725121832337,-2186.65209013,0.00011868,2]
[336765306,1725121832350,-1220.55060859,0.00011868,2]
[336765307,1725121832360,-183.00821368,0.00011929,2]
[336765308,1725121832369,-163.73216055,0.00011929,2]
[336765309,1725121832380,-500.0,0.00011973,2]
[336765310,1725121832390,-300.0,0.00011998,2]
[336765311,1725121832399,-150.0,0.00011998,2]
[336765312,1725121832409,-500.0,0.00011999,2]
[336765313,1725121832419,-500.0,0.00011999,2]
[336765314,1725121832429,-500.0,0.00011999,2]
[336765315,1725121832438,-439.82899562,0.00011999,2]
[336765316,1725121832447,-500.0,0.00011999,2]
[336765317,1725121832458,-500.0,0.00011999,2]
[336765318,1725121832467,-353.24386138,0.00011999,2]
[336765319,1725121832476,-500.0,0.00011999,2]
[336765320,1725121832486,-500.0,0.00011999,2]
[336765321,1725121832495,-425.91505848,0.00011999,2]
[336765322,1725121832505,-500.0,0.00011999,2]
[336765323,1725121832515,-500.0,0.00011999,2]
[336765325,1725121832525,-500.0,0.00011999,2]
[336765327,1725121832535,-500.0,0.00011999,2]
[336765329,1725121832544,-438.03633698,0.00011999,2]
[336765331,1725121832556,-155.73961977,0.00011999,2]
[336765333,1725121832566,-272.71686937,0.00011999,2]
[336765335,1725121832577,-227.28313063,0.00011999,2]
[336765337,1725121832587,-269.85486217,0.00011999,2]
[336765338,1725121832596,-213.87319408,0.00011999,2]
[336765339,1725121832608,-286.12680592,0.00011999,2]
[336765340,1725121832617,-500.0,0.00011999,2]
[336765341,1725121832627,-500.0,0.00011999,2]
[336765342,1725121832637,-500.0,0.00011999,2]
[336765343,1725121832650,-41.78391769,0.00011999,2]
[336765344,1725121832662,-458.21608231,0.00011999,2]
[336765345,1725121832671,-500.0,0.00011999,2]
[336765346,1725121832680,-500.0,0.00011999,2]
[336765347,1725121832691,-500.0,0.00011999,2]
[336765348,1725121832700,-500.0,0.00011999,2]
[336765349,1725121832710,-500.0,0.00011999,2]
[336765350,1725121832719,-500.0,0.00011999,2]
[336765351,1725121832728,-500.0,0.00011999,2]
[336765352,1725121832739,-500.0,0.00011999,2]
[336765353,1725121832748,-1631.59,0.00011999,2]
[336765354,1725121832758,-188613.50443288,0.00012,2]
[336765355,1725121832769,-486.59595781,0.00012,2]
[336765356,1725121832785,-7211.0,0.00012,2]
[336765357,1725121832796,-7839.8235,0.00012,2]
[336765358,1725121832807,-854.16488114,0.00012,2]
[336765359,1725121832818,-595.63513767,0.00012,2]
[336765360,1725121832829,-1132.38722525,0.00012,2]
[336765361,1725121832841,-5243.29172088,0.00012,2]
[336765362,1725121832870,-536.83568415,0.00012,2]
[336765363,1725121832882,-89663.39202533,0.00012,2]
[336765364,1725121832899,-497.48514,0.00012,2]
[336765365,1725121832917,-18354.88429489,0.00012,2]
[336765366,1725121832927,-181.34,0.00012029,2]
[336765367,1725121832937,-250.0,0.00012043,2]
[336765368,1725121832946,-512.0,0.00012048,2]
[336765369,1725121832955,-3977.25,0.00012048,2]
[336765370,1725121832964,-163.73216054,0.00012068,2]
[336765371,1725121832974,-163.73216054,0.00012206,2]
[336765372,1725121832983,-211.26,0.00012284,2]
[336765373,1725121832993,-193.64,0.00012343,2]
[336765374,1725121833003,-783.92,0.00012343,2]
[336765375,1725121833012,-476.92,0.00012343,2]
[336765376,1725121833022,-163.73216054,0.00012345,2]
[336765377,1725121833031,-488.0,0.00012385,2]
[336765378,1725121833042,-163.73216054,0.00012484,2]
[336765379,1725121833051,-163.73216054,0.00012623,2]
[336765380,1725121833061,-286.54,0.00012699,2]
[336765381,1725121833070,-13174.47808961,0.000127,2]
[336765382,1725121833082,-6005.0,0.000127,2]
[336765386,1725121838374,-10509.94341039,0.000127,2]
[336765387,1725121838386,-1000.0,0.000127,2]
[336765388,1725121838397,-6593.71,0.000127,2]
[336765389,1725121838410,-499.99,0.000127,2]
[336765390,1725121838422,-887.81,0.000127,2]
[336765391,1725121838433,-163.73216054,0.00012761,2]
[336765392,1725121838446,-6584.5293,0.00012799,2]
[336765393,1725121838458,-33468.15194186,0.00012828,2]
[336765394,1725121838483,-1264.43557993,0.00012828,2]
[336765395,1725121838496,-290.20507756,0.00012828,2]
[336765396,1725121838510,-3166.00733781,0.00012828,2]
[336765397,1725121838523,-20054.11074579,0.00012828,2]
[336765398,1725121838535,-1845.75492,0.0001287,2]
[336765399,1725121838546,-500.0,0.00012896,2]
[336765400,1725121838557,-1000.0,0.000129,2]
[336765401,1725121838568,-163.73216054,0.000129,2]
[336765402,1725121838579,-1077.59402565,0.000129,2]
[336765403,1725121838590,-2662.99094684,0.00012948,5]
[336765404,1725121838601,-2597.34882401,0.00012968,10]
[336765405,1725121838615,-756.8045473,0.00012968,10]
[336765406,1725121838625,-500.0,0.00012973,2]
[336765407,1725121838637,-150.86,0.0001299,2]
[336765408,1725121838651,-159.9098548,0.00012997,2]
[336765409,1725121838663,-1000.0,0.00012999,2]
[336765410,1725121838675,-1000.0,0.00012999,2]
[336765411,1725121838687,-1000.0,0.00012999,2]
[336765412,1725121838699,-1000.0,0.00012999,2]
[336765413,1725121838710,-1000.0,0.00012999,2]
[336765414,1725121838722,-1000.0,0.00012999,2]
[336765415,1725121838732,-1000.0,0.00012999,2]
[336765416,1725121838744,-1000.0,0.00012999,2]
[336765417,1725121838756,-1000.0,0.00012999,2]
[336765418,1725121838768,-1000.0,0.00012999,2]
[336765420,1725121838781,-1000.0,0.00012999,2]
[336765422,1725121838792,-711.52919799,0.00012999,2]
[336765423,1725121838806,-288.47080201,0.00012999,2]
[336765424,1725121838817,-1000.0,0.00012999,2]
[336765425,1725121838827,-1000.0,0.00012999,2]
[336765426,1725121838838,-1000.0,0.00012999,2]
[336765427,1725121838849,-1000.0,0.00012999,2]
[336765428,1725121838860,-1000.0,0.00012999,2]
[336765429,1725121838871,-1000.0,0.00012999,2]
[336765430,1725121838884,-1000.0,0.00012999,2]
[336765431,1725121838897,-1000.0,0.00012999,2]
[336765432,1725121838907,-1000.0,0.00012999,2]
[336765433,1725121838919,-1000.0,0.00012999,2]
[336765434,1725121838930,-1000.0,0.00012999,2]
[336765435,1725121838943,-1000.0,0.00012999,2]
[336765436,1725121838954,-1000.0,0.00012999,2]
[336765437,1725121838966,-1000.0,0.00012999,2]
[336765438,1725121838977,-1000.0,0.00012999,2]
[336765439,1725121838988,-1000.0,0.00012999,2]
[336765440,1725121839000,-1000.0,0.00012999,2]
[336765441,1725121839011,-321.4127291,0.00012999,2]
[336765442,1725121839035,-678.5872709,0.00012999,2]
[336765443,1725121839048,-1000.0,0.00012999,2]
[336765444,1725121839060,-1000.0,0.00012999,2]
[336765445,1725121839071,-501.0,0.00013,2]
[336765446,1725121839082,-58570.41272912,0.00013,2]
[336765447,1725121839096,-6186.18,0.00013,2]
[336765448,1725121839110,-999.4324,0.00013,2]
[336765449,1725121839126,-2644.17619719,0.00013,2]
[336765450,1725121839287,-950746.63891802,0.00013,2]
[336765457,1725121840313,-273.925,0.00013,2]
[336765460,1725121840427,-1514.00459248,0.00013,2]
[336765461,1725121840487,-3100.66049906,0.00013,2]
[336765462,1725121840502,-29872.41132061,0.00013,2]
[336765463,1725121840545,-6541.20855118,0.00013,2]
[336765464,1725121840606,-1539.999995,0.00013,2]
[336765465,1725121840619,-435.92970156,0.00013,2]
[336765466,1725121840665,-5859.46811615,0.00013,2]
[336765495,1725121842363,207.97,0.00010959,2]
[336765540,1725121843288,-548.91162528,0.00013,2]
[336765542,1725121843403,-1109.25964547,0.00013,2]
[336765543,1725121843415,-603.56506181,0.00013,2]
[336765544,1725121843426,-642.70249532,0.00013,2]
[336765545,1725121843463,-445535.67497677,0.00013,2]
[336765546,1725121843476,-4873.52170626,0.00013,2]
[336765547,1725121843487,-382.92113158,0.00013,2]
[336765548,1725121843520,-1503.0,0.00013,2]
[336765550,1725121843532,-6206.83536634,0.00013,2]
[336765621,1725121844945,-852.50000011,0.00013,2]
[336765623,1725121873476,173.31,0.00010959,2]
[336765625,1725122019131,451.03,0.00010399,2]
[336765626,1725122072637,11504.0,0.000106,5]
[336765627,1725122072860,4693.0,0.000103,3]
[336765628,1725122249638,176.28,0.00010959,2]
[336765630,1725122300003,2004.28,0.00011,2]
[336765631,1725122580183,461.19,9.915e-05,2]
[336765639,1725122909935,202.96,0.00010959,2]
[336765643,1725123031546,-250.0,0.00011538,2]
[336765644,1725123031556,-250.0,0.00011601,2]
[336765645,1725123031567,-169.01,0.00011747,2]
[336765646,1725123031577,-160.57,0.00011796,2]
[336765647,1725123031587,-549.0,0.00011798,2]
[336765648,1725123031599,-250.0,0.00011798,2]
[336765649,1725123031609,-2952.46,0.00011799,2]
[336765650,1725123031619,-285.8511,0.000118,2]
[336765651,1725123031630,-154.23,0.0001186,2]
[336765652,1725123031641,-150.0,0.00011863,2]
[336765653,1725123031650,-202.24787696,0.00011873,2]
[336765654,1725123031662,-637.70410917,0.00011873,2]
[336765655,1725123031674,-672.3424,0.00011873,2]
[336765656,1725123031729,-5.12561387,0.00011873,2]
[336765657,1725123031738,-409.6,0.00011875,2]
[336765658,1725123031749,-150.0,0.00011899,2]
[336765659,1725123031758,-300.0,0.00011899,2]
[336765660,1725123031768,-1657.34055886,0.000119,2]
[336765661,1725123031780,-7384.92556584,0.000119,2]
[336765662,1725123031792,-1299.333284,0.000119,2]
[336765663,1725123031804,-6959.30203298,0.000119,2]
[336765664,1725123031819,-1367.57781629,0.000119,2]
[336765665,1725123031831,-2207.62085434,0.000119,2]
[336765666,1725123031843,-784.34351086,0.000119,2]
[336765668,1725123031859,-966.21666469,0.000119,2]
[336765669,1725123031871,-741.8811006,0.000119,2]
[336765670,1725123031895,-3406.03390733,0.000119,2]
[336765671,1725123031908,-5175.62515881,0.000119,2]
[336765672,1725123031920,-363.76455997,0.000119,2]
[336765673,1725123032007,-2031.63252722,0.000119,2]
[336765674,1725123032019,-9678.66962938,0.000119,2]
[336765675,1725123032030,-23226.41652883,0.000119,2]
[336765676,1725123032040,-39255.2916,0.000119,2]
[336765677,1725123032050,-701.8361,0.000119,2]
[336765678,1725123032060,-2000.0,0.000119,2]
[336765679,1725123032070,-1231.767,0.000119,2]
[336765680,1725123032080,-2668.28,0.000119,2]
[336765681,1725123032090,-6411.78,0.000119,2]
[336765682,1725123032101,-499.99,0.00011914,2]
[336765683,1725123032111,-3651.37,0.00011914,2]
[336765684,1725123032121,-216.30053767,0.00012002,2]
[336765685,1725123032131,-230.99,0.00012063,2]
[336765686,1725123032140,-8237.67,0.00012063,2]
[336765687,1725123032150,-461.19,0.00012179,2]
[336765688,1725123032159,-590.4,0.00012435,2]
[336765689,1725123032169,-351.57017114,0.00012693,2]
[336765690,1725123032179,-3300.0,0.000127,5]
[336765691,1725123032188,-150.0,0.00012736,2]
[336765692,1725123032198,-1.43771459,0.00012756,2]
[336765693,1725123032209,-149.06916761,0.00012756,2]
[336765694,1725123032219,-495.38122509,0.000128,2]
[336765697,1725123037560,-250.485,0.000128,2]
[336765698,1725123037643,-615.002,0.000128,2]
[336765699,1725123037656,-918.803945,0.000128,2]
[336765700,1725123037668,-513.37893093,0.000128,2]
[336765701,1725123037684,-487.56458668,0.000128,2]
[336765702,1725123037694,-150.0,0.00012811,2]
[336765703,1725123037704,-3280.61568762,0.00012811,2]
[336765704,1725123037714,-3280.61568762,0.00012822,2]
[336765705,1725123037725,-3280.61568762,0.00012833,2]
[336765706,1725123037734,-3280.61568762,0.00012844,2]
[336765707,1725123037744,-3280.61568762,0.00012856,2]
[336765708,1725123037754,-712.87455117,0.00012867,2]
[336765709,1725123037818,-576.87446552,0.00012867,2]
[336765710,1725123037830,-1990.86667093,0.00012867,2]
[336765711,1725123037839,-3280.61568762,0.00012878,2]
[336765712,1725123037849,-3280.61568762,0.00012889,2]
[336765713,1725123037861,-500.0,0.00012896,2]
[336765714,1725123037870,-716.32820236,0.00012896,2]
[336765715,1725123037879,-716.32820234,0.00012897,2]
[336765716,1725123037889,-716.32820234,0.00012897,2]
[336765717,1725123037899,-716.32820234,0.00012898,2]
[336765718,1725123037910,-716.32820234,0.00012898,2]
[336765719,1725123037920,-716.32820234,0.00012899,2]
[336765720,1725123037929,-649.93273977,0.00012899,2]
[336765721,1725123037966,-4634.35896023,0.00012899,2]
[336765722,1725123037976,-170.7549,0.00012899,2]
[336765723,1725123037986,-716.32820234,0.00012899,2]
[336765724,1725123037996,-12658.7499,0.000129,2]
[336765725,1725123038006,-4399.7388,0.000129,2]
[336765726,1725123038016,-163.94885825,0.000129,2]
[336765727,1725123038025,-603.3586668,0.000129,2]
[336765728,1725123038035,-166.39250321,0.000129,2]
[336765729,1725123038044,-3280.61568762,0.000129,2]
[336765730,1725123038054,-1703.0,0.000129,2]
[336765731,1725123038063,-186.22651356,0.000129,2]
[336765732,1725123038072,-2813.0200712,0.000129,2]
[336765733,1725123038081,-420.55148386,0.000129,2]
[336765735,1725123038092,-172.46467046,0.000129,2]
[336765737,1725123038103,-500.0,0.00012973,2]
[336765739,1725123038113,-500.0,0.00012973,2]
[336765741,1725123038122,-500.0,0.00012973,2]
[336765742,1725123038132,-150.0,0.00012974,2]
[336765743,1725123038142,-255.0,0.00012982,2]
[336765744,1725123038152,-150.82,0.0001299,2]
[336765745,1725123038162,-442.58840148,0.00012995,2]
[336765746,1725123038172,-500.0,0.00012995,2]
[336765747,1725123038181,-500.0,0.00012995,2]
[336765748,1725123038190,-500.0,0.00012995,2]
[336765749,1725123038200,-331.20107901,0.00012995,2]
[336765750,1725123038210,-6022.6982911,0.00012996,2]
[336765751,1725123038219,-87989.8493995,0.00012996,2]
[336765752,1725123038229,-3083.3954149,0.00012996,2]
[336765753,1725123038238,-1332.85298392,0.00012997,2]
[336765754,1725123038248,-6355.63761495,0.00012998,2]
[336765755,1725123038258,-58088.05249935,0.00012998,2]
[336765756,1725123038267,-172.84134985,0.00012999,2]
[336765757,1725123038277,-986.41695759,0.00012999,2]
[336765758,1725123038286,-87885.36938126,0.00012999,2]
[336765759,1725123038296,-513.0,0.00013,2]
[336765760,1725123038306,-487535.8485434,0.00013,2]
[336765761,1725123038318,-2116.2561326,0.00013,2]
[336765762,1725123038329,-902.63081299,0.00013,2]
[336765763,1725123038340,-11930.89612519,0.00013,2]
[336765766,1725123039467,-131493.76972069,0.00013,2]
[336765767,1725123039478,-5271.4329999,0.00013,2]
[336765768,1725123039490,-654.69875375,0.00013,2]
[336765769,1725123039502,-2268.5,0.00013,2]
[336765770,1725123039524,-534.58514912,0.00013,2]
[336765771,1725123039536,-1300.0,0.00013,2]
[336765772,1725123039547,-1308.53482217,0.00013,2]
[336765773,1725123039558,-1007.52312096,0.00013,2]
[336765774,1725123039586,-26012.45837098,0.00013,2]
[336765775,1725123039598,-3094.43711027,0.00013,2]
[336765776,1725123039611,-719.26763437,0.00013,2]
[336765777,1725123039622,-1140.8915915,0.00013,2]
[336765778,1725123039646,-175020.9695644,0.00013,2]
[336765779,1725123039658,-1196.27748856,0.00013,2]
[336765780,1725123039670,-888.8703437,0.00013,2]
[336765781,1725123039681,-5169.12813013,0.00013,2]
[336765782,1725123039788,-1383.75,0.00013,2]
[336765783,1725123039800,-477.21,0.00013,2]
[336765784,1725123039811,-281635.71814823,0.00013,2]
[336765785,1725123039821,-711.80794875,0.00013,2]
[336765786,1725123039845,-186696.30956167,0.00013,2]
[336765787,1725123039858,-1593.55023297,0.00013,2]
[336765827,1725123042512,-285.30000004,0.00013,2]
[336765831,1725123044041,-2144.147432,0.00013,2]
[336765832,1725123044053,-7898.999995,0.00013,2]
[336765833,1725123044064,-12368.84349906,0.00013,2]
[336765834,1725123044079,-5461.22,0.00013,2]
[336765835,1725123044091,-495.13548268,0.00013,2]
[336765836,1725123044195,-2183.75811,0.00013,2]
[336765837,1725123044226,-3640.15163054,0.00013,2]
[336765839,1725123045511,-500.0,0.00012973,2]
[336765840,1725123045521,-6814.07291341,0.00013,2]
[336765841,1725123045532,-578.09,0.00013,2]
[336765842,1725123045679,-449.2400937,0.00013,2]
[336765843,1725123045690,-252.63,0.00013,2]
[336765845,1725123403450,154.06,0.00010959,2]
[336765847,1725123579036,423.25,0.00010489,2]
[336765848,1725123635457,550.0,0.00011,2]
[336765853,1725124092860,402.08,0.0001026,2]
[336765875,1725124231701,-250.0,0.00012081,2]
[336765877,1725124231712,-186.25460476,0.00012084,2]
[336765879,1725124231722,-250.0,0.00012127,2]
[336765881,1725124231731,-250.0,0.00012184,2]
[336765883,1725124231741,-274.74539524,0.00012201,2]
[336765884,1725124231753,-725.25460476,0.00012201,2]
[336765885,1725124231763,-184.79,0.00012223,2]
[336765886,1725124231773,-200.0,0.00012445,2]
[336765887,1725124231784,-402.08,0.00012524,2]
[336765888,1725124231794,-300.0,0.00012699,2]
[336765889,1725124231803,-454.5627,0.000127,2]
[336765890,1725124231814,-1657.0,0.000127,2]
[336765891,1725124231825,-427.09,0.000127,2]
[336765892,1725124231834,-150.99,0.000127,2]
[336765893,1725124231844,-499.99,0.00012799,2]
[336765894,1725124231856,-1292.19627059,0.00012799,2]
[336765895,1725124231869,-620.88026,0.00012799,2]
[336765896,1725124231882,-2966.48754,0.00012799,2]
[336765897,1725124231902,-553.01681983,0.00012799,2]
[336765898,1725124231915,-1284.35585131,0.00012799,2]
[336765899,1725124231927,-876.72999162,0.00012799,2]
[336765900,1725124231938,-2194.55656055,0.00012799,2]
[336765901,1725124231966,-500.53060722,0.00012799,2]
[336765902,1725124231978,-251.35461498,0.00012799,2]
[336765903,1725124231990,-439.89349223,0.00012799,2]
[336765904,1725124232018,-1142.54909167,0.00012799,2]
[336765905,1725124232028,-157.45090833,0.00012799,2]
[336765930,1725124237850,-518.69709167,0.00012799,2]
[336765931,1725124237859,-738.73856589,0.000128,2]
[336765932,1725124237966,-596.64625489,0.000128,2]
[336765933,1725124237990,-2087.21303329,0.000128,2]
[336765934,1725124238023,-531.06930366,0.000128,2]
[336765935,1725124238035,-13422.79164227,0.000128,2]
[336765936,1725124238046,-10344.38584572,0.0001289,2]
[336765937,1725124238059,-500.0,0.00012896,2]
[336765938,1725124238068,-2000.0,0.000129,2]
[336765939,1725124238078,-557.8916,0.000129,2]
[336765940,1725124238087,-179.90161929,0.000129,2]
[336765941,1725124238096,-1475.76,0.000129,2]
[336765942,1725124238106,-573.7347,0.000129,2]
[336765943,1725124238115,-1187.57644441,0.000129,2]
[336765944,1725124238124,-716.32820234,0.000129,2]
[336765945,1725124238134,-500.0,0.00012973,2]
[336765946,1725124238143,-500.0,0.00012973,2]
[336765947,1725124238152,-150.82,0.0001299,2]
[336765948,1725124238162,-2420.0050751,0.00012996,2]
[336765949,1725124238171,-69462.7488077,0.00012996,2]
[336765950,1725124238180,-203.46678656,0.00012999,2]
[336765951,1725124238189,-33165.42503661,0.00013,2]
[336765952,1725124238201,-547.54749979,0.00013,2]
[336765953,1725124238213,-583.09995883,0.00013,2]
[336765954,1725124238249,-4985.0801,0.00013,2]
[336765955,1725124238261,-3391.02565311,0.00013,2]
[336765962,1725124239707,-1458.91842534,0.00013,2]
[336765963,1725124239771,-969.65529697,0.00013,2]
[336765964,1725124239828,-998.486475,0.00013,2]
[336765965,1725124239840,-2110.66568425,0.00013,2]
[336765966,1725124239889,-3015.37057037,0.00013,2]
[336765967,1725124239900,-642.79791123,0.00013,2]
[336765968,1725124239969,-4125.98200796,0.00013,2]
[336765969,1725124240028,-680.01783906,0.00013,2]
[336765970,1725124240039,-1219.2843645,0.00013,2]
[336765971,1725124240052,-391.951146,0.00013,2]
[336765972,1725124240070,-2925.98626232,0.00013,2]
[336765973,1725124240121,-6007.80077973,0.00013,2]
[336765974,1725124240134,-10000.0,0.00013,2]
[336765975,1725124240147,-79453.25159359,0.00013,2]
[336766006,1725124242779,-5420.415,0.00013,2]
[336766007,1725124242797,-618.59,0.00013,2]
[336766008,1725124242839,-636.49603942,0.00013,2]
[336766009,1725124242854,-501.86744235,0.00013,2]
[336766010,1725124242869,-13779.17179148,0.00013,2]
[336766011,1725124242881,-359.73856219,0.00013,2]
[336766019,1725124245844,-328.04999985,0.00013,2]
[336766020,1725124245859,-5000.0,0.00013,2]
[336766021,1725124245870,-1302.1840501,0.00013,2]
[336766022,1725124245896,-641189.87676569,0.00013,2]
[336766023,1725124245908,-1720.3100005,0.00013,2]
[336766024,1725124245919,-7300.0,0.00013,2]
[336766025,1725124245931,-177805.24882099,0.00013,2]
[336766026,1725124245950,-12722.77961447,0.00013,2]
[336766068,1725124246531,-5930.48493681,0.00013,2]
[336766070,1725124246543,-2289.91559988,0.00013,2]
[336766072,1725124246554,-5486.25292594,0.00013,2]
[336766074,1725124246565,-6770.28999999,0.00013,2]
[336766078,1725124246587,-3106.77721964,0.00013,2]
[336766080,1725124246599,-1470.51803953,0.00013,2]
[336766082,1725124246614,-792.73224283,0.00013,2]
[336766085,1725124246625,-6597.82855602,0.00013,2]
[336766087,1725124246636,-2985.11727615,0.00013,2]
[336766089,1725124246648,-656.37,0.00013,2]
[336766091,1725124246659,-63336.92889818,0.00013,2]
[336766462,1725124315059,154.4,9.909e-05,2]
[336766463,1725124465187,168.12,0.00010959,2]
[336766465,1725124621198,188.33,9.987e-05,2]
[336766466,1725124665439,370.91,0.00010566,2]
[336766467,1725124802852,150.0,0.00010566,2]
[336766468,1725124803064,150.0,0.00010566,2]
[336766470,1725124803279,150.0,0.00010566,2]
[336766471,1725124803484,150.0,0.00010566,2]
[336766472,1725124803806,150.0,0.00010566,2]
[336766473,1725124804024,150.0,0.00010566,2]
[336766474,1725124804257,150.0,0.00010566,2]
[336766475,1725124804467,150.0,0.00010566,2]
[336766476,1725124804675,150.0,0.00010566,2]
[336766477,1725124804876,150.0,0.00010566,2]
[336766478,1725124805083,150.0,0.00010566,2]
[336766479,1725124807140,202.39268906,0.00010566,2]
[336766481,1725125063483,152.59,0.00010959,2]
[336766483,1725125108701,305.10573782,0.0001099,2]
[336766484,1725125145748,352.36,0.00010109,2]
[336766486,1725125296769,422.35,0.00010959,2]
[336766499,1725125431862,-450.44936041,0.00011857,2]
[336766501,1725125431874,-994.75036476,0.00011857,2]
[336766503,1725125431883,-589.0,0.00011901,2]
[336766505,1725125431893,-1050.0,0.00011902,2]
[336766506,1725125431904,-250.0,0.00011957,2]
[336766507,1725125431913,-200.0,0.00012002,2]
[336766508,1725125431923,-565.632,0.00012003,2]
[336766509,1725125431933,-200.0,0.00012062,2]
[336766510,1725125431942,-250.0,0.00012063,2]
[336766511,1725125431953,-268.36,0.00012138,2]
[336766512,1725125431962,-500.0,0.000122,2]
[336766513,1725125431973,-429.0,0.000122,2]
[336766514,1725125431983,-250.0,0.00012265,2]
[336766515,1725125431993,-179.25763524,0.00012265,2]
[336766516,1725125432018,-1205.0,0.00012265,2]
[336766517,1725125432029,-30.82236476,0.00012265,2]
[336766518,1725125432039,-300.0,0.00012298,2]
[336766519,1725125432048,-800.0,0.00012299,2]
[336766520,1725125432057,-499.99,0.00012299,2]
[336766521,1725125432067,-169.01,0.00012322,2]
[336766522,1725125432076,-352.36,0.00012372,2]
[336766523,1725125432086,-201.0,0.00012547,2]
[336766524,1725125432096,-1446.81763524,0.00012649,2]
[336766525,1725125432115,-878.30190677,0.00012649,2]
[336766526,1725125432127,-1145.81045799,0.00012649,2]
[336766527,1725125432137,-9207.26800442,0.00012649,2]
[336766528,1725125432157,-800.44330207,0.00012649,2]
[336767128,1725125438455,-534.4333347,0.00012649,2]
[336767131,1725125438471,-9457.84535881,0.00012649,2]
[336767133,1725125438481,-1782.3,0.00012649,2]
[336767134,1725125438491,-29999.99,0.00012649,2]
[336767137,1725125438501,-192.4,0.00012681,2]
[336767139,1725125438515,-1185.41627808,0.0001287,2]
[336767141,1725125438525,-685.1317,0.000129,2]
[336767143,1725125438534,-1069.7375,0.000129,2]
[336767145,1725125438544,-267.5252,0.000129,2]
[336767147,1725125438555,-3143.70047368,0.000129,2]
[336767149,1725125438564,-305.47677564,0.000129,2]
[336767151,1725125438574,-500.0,0.0001297,2]
[336767153,1725125438583,-500.0,0.00012973,2]
[336767155,1725125438594,-505.80481578,0.00012973,2]
[336767157,1725125438603,-506.0,0.00013,2]
[336767159,1725125438612,-464777.42849423,0.00013,2]
[336767161,1725125438629,-2069.953661,0.00013,2]
[336767167,1725125438674,-483.7355491,0.00013,2]
[336767303,1725125440026,-1444.0,0.00013,2]
[336767305,1725125440038,-1198.510641,0.00013,2]
[336767312,1725125440095,-565.3,0.00013,2]
[336767326,1725125440219,-8253.57036446,0.00013,2]
[336767339,1725125441336,550.0,0.00011,2]
[336767474,1725125443054,-1118.97,0.00013,2]
[336767480,1725125443110,-304.4341043,0.00013,2]
[336767658,1725125446021,-260.0,0.00013,2]
[336767659,1725125446033,-550.0,0.00013,2]
[336767660,1725125446044,-6461.30556918,0.00013,2]
[336767661,1725125446084,-2158.05737989,0.00013,2]
[336767662,1725125446095,-648.45221928,0.00013,2]
[336767664,1725125641975,202.96,0.00010959,2]
[336767665,1725125649495,341.52,0.00010271,2]
[336767666,1725126129595,153.44,9.114e-05,2]
[336767667,1725126199192,159.36,0.00010959,2]